fUSD/lending_fUSD_20250109
["ID","MTS","AMOUNT","RATE_DAILY","PERIOD"]
[348265623,1736425857293,-500.0,0.00011363,2]
[348265624,1736425857303,-592.77,0.00011363,2]
[348265625,1736425857312,-524.57,0.00011363,2]
[348265626,1736425857322,-936.88,0.00011363,2]
[348265627,1736425857331,-234.76,0.00011363,2]
[348265628,1736425857341,-1451.29,0.00011363,2]
[348265629,1736425857351,-500.0,0.00011363,2]
[348265630,1736425857360,-277.31,0.00011363,2]
[348265631,1736425857369,-196.18,0.00011363,2]
[348265632,1736425857379,-731.91,0.00011363,2]
[348265633,1736425857388,-369.97,0.00011363,2]
[348265634,1736425857398,-929.61,0.00011363,2]
[348265635,1736425857407,-551.57,0.00011363,2]
[348265636,1736425857416,-269.75,0.00011363,2]
[348265637,1736425857426,-2453.77,0.00011363,2]
[348265638,1736425857435,-574.43,0.00011363,2]
[348265639,1736425857445,-500.0,0.00011363,2]
[348265640,1736425857454,-500.0,0.00011363,2]
[348265641,1736425857463,-500.0,0.00011363,2]
[348265642,1736425857473,-598.91,0.00011363,2]
[348265643,1736425857483,-500.0,0.00011363,2]
[348265644,1736425857495,-1196.49,0.00011363,2]
[348265645,1736425857504,-628.31,0.00011363,2]
[348265646,1736425857515,-195.68,0.00011363,2]
[348265647,1736425857524,-500.0,0.00011363,2]
[348265648,1736425857533,-464.52,0.00011363,2]
[348265649,1736425857543,-500.0,0.00011363,2]
[348265650,1736425857553,-500.0,0.00011363,2]
[348265651,1736425857563,-500.0,0.00011363,2]
[348265652,1736425857572,-624.76,0.00011363,2]
[348265653,1736425857586,-212.63,0.00011363,2]
[348265654,1736425857596,-500.0,0.00011363,2]
[348265655,1736425857605,-500.0,0.00011363,2]
[348265656,1736425857615,-192.54,0.00011363,2]
[348265657,1736425857625,-646.53,0.00011363,2]
[348265658,1736425857634,-626.49,0.00011363,2]
[348265659,1736425857644,-1001.89,0.00011363,2]
[348265660,1736425857654,-1230.16,0.00011363,2]
[348265661,1736425857664,-537.3,0.00011364,2]
[348265662,1736425857673,-1343.75,0.00011364,2]
[348265663,1736425857682,-564.14,0.00011364,2]
[348265664,1736425857691,-1503.21,0.00011364,2]
[348265665,1736425857701,-500.0,0.00011364,2]
[348265666,1736425857710,-500.0,0.00011364,2]
[348265667,1736425857720,-218.25,0.00011364,2]
[348265668,1736425857730,-607.47,0.00011364,2]
[348265669,1736425857739,-500.0,0.00011364,2]
[348265670,1736425857748,-203.09,0.00011364,2]
[348265671,1736425857758,-500.0,0.00011364,2]
[348265672,1736425857767,-500.0,0.00011364,2]
[348265673,1736425857776,-500.0,0.00011364,2]
[348265674,1736425857785,-500.0,0.00011364,2]
[348265675,1736425857794,-719.7,0.00011364,2]
[348265676,1736425857803,-500.0,0.00011364,2]
[348265677,1736425857813,-500.0,0.00011364,2]
[348265678,1736425857823,-957.74,0.00011364,2]
[348265679,1736425857832,-500.0,0.00011364,2]
[348265680,1736425857842,-500.0,0.00011364,2]
[348265681,1736425857851,-500.0,0.00011364,2]
[348265682,1736425857861,-500.0,0.00011364,2]
[348265683,1736425857870,-500.0,0.00011364,2]
[348265684,1736425857880,-819.32,0.00011364,2]
[348265685,1736425857889,-500.0,0.00011364,2]
[348265686,1736425857899,-2787.96,0.00011364,2]
[348265687,1736425857909,-500.0,0.00011364,2]
[348265688,1736425857919,-500.0,0.00011364,2]
[348265689,1736425857929,-500.0,0.00011364,2]
[348265690,1736425857939,-500.0,0.00011365,2]
[348265691,1736425857948,-500.0,0.00011369,2]
[348265692,1736425857958,-500.0,0.00011369,2]
[348265693,1736425857968,-605.39,0.00011369,2]
[348265694,1736425857977,-500.0,0.00011369,2]
[348265695,1736425857987,-500.0,0.00011369,2]
[348265696,1736425857996,-500.0,0.00011369,2]
[348265697,1736425858006,-813.79,0.00011369,2]
[348265698,1736425858016,-500.0,0.00011369,2]
[348265699,1736425858026,-500.0,0.00011369,2]
[348265700,1736425858035,-532.95,0.00011369,2]
[348265701,1736425858045,-392.64,0.00011369,2]
[348265702,1736425858055,-558.87,0.00011369,2]
[348265703,1736425858071,-873.88,0.00011479,2]
[348265704,1736425858087,-978.7,0.00011479,2]
[348265705,1736425858101,-215.70268658,0.000115,2]
[348265706,1736425858112,-2751.0,0.00011507,2]
[348265707,1736425858126,-500.0,0.00011637,2]
[348265708,1736425858140,-936.88,0.00011637,2]
[348265709,1736425858153,-1451.29,0.00011637,2]
[348265710,1736425858167,-500.0,0.00011637,2]
[348265711,1736425858181,-731.91,0.00011637,2]
[348265712,1736425858194,-929.61,0.00011637,2]
[348265713,1736425858206,-2453.77,0.00011637,2]
[348265714,1736425858217,-500.0,0.00011637,2]
[348265715,1736425858230,-500.0,0.00011637,2]
[348265716,1736425858244,-500.0,0.00011637,2]
[348265717,1736425858257,-598.91,0.00011637,2]
[348265718,1736425858270,-500.0,0.00011637,2]
[348265719,1736425858284,-1196.49,0.00011637,2]
[348265720,1736425858298,-628.31,0.00011637,2]
[348265721,1736425858311,-535.36832048,0.00011637,2]
[348265722,1736425858326,-500.0,0.00011637,2]
[348265723,1736425858339,-500.0,0.00011637,2]
[348265724,1736425858353,-558.18185165,0.00011637,2]
[348265725,1736425858366,-624.76,0.00011637,2]
[348265726,1736425858379,-500.0,0.00011637,2]
[348265727,1736425858392,-500.0,0.00011637,2]
[348265728,1736425858407,-646.53,0.00011637,2]
[348265729,1736425858419,-626.49,0.00011637,2]
[348265730,1736425858432,-1001.89,0.00011637,2]
[348265731,1736425858443,-1230.16,0.00011637,2]
[348265732,1736425858455,-537.3,0.00011638,2]
[348265733,1736425858466,-1343.75,0.00011638,2]
[348265734,1736425858483,-564.14,0.00011638,2]
[348265735,1736425858495,-1503.21,0.00011638,2]
[348265736,1736425858506,-500.0,0.00011638,2]
[348265737,1736425858517,-500.0,0.00011638,2]
[348265738,1736425858529,-607.47,0.00011638,2]
[348265739,1736425858543,-158.1,0.00011638,2]
[348265740,1736425858556,-500.0,0.00011638,2]
[348265741,1736425858567,-500.0,0.00011638,2]
[348265742,1736425858580,-500.0,0.00011638,2]
[348265743,1736425858591,-500.0,0.00011638,2]
[348265744,1736425858602,-719.7,0.00011638,2]
[348265745,1736425858614,-500.0,0.00011638,2]
[348265746,1736425858627,-500.0,0.00011638,2]
[348265747,1736425858639,-957.74,0.00011638,2]
[348265748,1736425858651,-500.0,0.00011638,2]
[348265749,1736425858663,-500.0,0.00011638,2]
[348265750,1736425858674,-500.0,0.00011638,2]
[348265751,1736425858686,-500.0,0.00011638,2]
[348265752,1736425858698,-500.0,0.00011638,2]
[348265753,1736425858709,-819.32,0.00011638,2]
[348265754,1736425858721,-500.0,0.00011638,2]
[348265755,1736425858733,-2787.96,0.00011638,2]
[348265756,1736425858746,-500.0,0.00011638,2]
[348265757,1736425858757,-500.0,0.00011638,2]
[348265758,1736425858769,-500.0,0.00011638,2]
[348265759,1736425858781,-500.0,0.00011639,2]
[348265760,1736425858792,-500.0,0.00011643,2]
[348265761,1736425858804,-500.0,0.00011643,2]
[348265762,1736425858816,-605.39,0.00011643,2]
[348265763,1736425858827,-500.0,0.00011643,2]
[348265764,1736425858839,-392.08,0.00011643,2]
[348265765,1736425858852,-500.0,0.00011643,2]
[348265766,1736425858863,-813.79,0.00011643,2]
[348265767,1736425858875,-500.0,0.00011643,2]
[348265768,1736425858887,-500.0,0.00011643,2]
[348265769,1736425858898,-532.95,0.00011643,2]
[348265770,1736425858910,-558.87,0.00011643,2]
[348265771,1736425858922,-150.0,0.0001166,2]
[348265772,1736425858933,-156.957,0.0001168,2]
[348265773,1736425858945,-215.70268658,0.000117,2]
[348265774,1736425858958,-1000.0,0.00011835,2]
[348265775,1736425858970,-587.0,0.00011852,2]
[348265776,1736425858983,-383245.68768292,0.0001188,2]
[348265777,1736425858994,-175.597,0.000119,2]
[348265778,1736425859007,-215.70268658,0.000119,2]
[348265779,1736425859020,-2290.275,0.00011904,2]
[348265780,1736425859032,-500.0,0.00011911,2]
[348265781,1736425859044,-936.88,0.00011911,2]
[348265782,1736425859056,-1451.29,0.00011911,2]
[348265783,1736425859067,-500.0,0.00011911,2]
[348265784,1736425859080,-731.91,0.00011911,2]
[348265785,1736425859091,-929.61,0.00011911,2]
[348265786,1736425859102,-2453.77,0.00011911,2]
[348265787,1736425859114,-228.06006137,0.00011911,2]
[348265788,1736425859126,-500.0,0.00011911,2]
[348265789,1736425859137,-500.0,0.00011911,2]
[348265790,1736425859150,-598.91,0.00011911,2]
[348265791,1736425859162,-468.22,0.00011911,2]
[348265792,1736425859174,-1196.49,0.00011911,2]
[348265793,1736425859186,-628.31,0.00011911,2]
[348265794,1736425859199,-500.0,0.00011911,2]
[348265795,1736425859211,-500.0,0.00011911,2]
[348265796,1736425859223,-624.76,0.00011911,2]
[348265797,1736425859235,-999.0,0.00011911,2]
[348265798,1736425859246,-999.0,0.00011911,2]
[348265799,1736425859257,-500.0,0.00011911,2]
[348265800,1736425859269,-500.0,0.00011911,2]
[348265801,1736425859281,-646.53,0.00011911,2]
[348265802,1736425859292,-626.49,0.00011911,2]
[348265803,1736425859303,-1001.89,0.00011911,2]
[348265804,1736425859314,-1230.16,0.00011911,2]
[348265805,1736425859326,-537.3,0.00011912,2]
[348265806,1736425859338,-1343.75,0.00011912,2]
[348265807,1736425859349,-564.14,0.00011912,2]
[348265808,1736425859360,-1503.21,0.00011912,2]
[348265809,1736425859372,-280.59,0.00011912,2]
[348265810,1736425859383,-500.0,0.00011912,2]
[348265811,1736425859394,-607.47,0.00011912,2]
[348265812,1736425859405,-500.0,0.00011912,2]
[348265813,1736425859416,-500.0,0.00011912,2]
[348265814,1736425859427,-500.0,0.00011912,2]
[348265815,1736425859439,-500.0,0.00011912,2]
[348265816,1736425859450,-719.7,0.00011912,2]
[348265817,1736425859462,-500.0,0.00011912,2]
[348265818,1736425859474,-500.0,0.00011912,2]
[348265819,1736425859486,-957.74,0.00011912,2]
[348265820,1736425859499,-500.0,0.00011912,2]
[348265821,1736425859512,-500.0,0.00011912,2]
[348265822,1736425859523,-500.0,0.00011912,2]
[348265823,1736425859535,-500.0,0.00011912,2]
[348265824,1736425859547,-500.0,0.00011912,2]
[348265825,1736425859558,-819.32,0.00011912,2]
[348265826,1736425859569,-500.0,0.00011912,2]
[348265827,1736425859584,-2787.96,0.00011912,2]
[348265828,1736425859596,-500.0,0.00011912,2]
[348265829,1736425859608,-500.0,0.00011912,2]
[348265830,1736425859620,-500.0,0.00011913,2]
[348265831,1736425859633,-500.0,0.00011917,2]
[348265832,1736425859646,-500.0,0.00011917,2]
[348265833,1736425859659,-605.39,0.00011917,2]
[348265834,1736425859672,-500.0,0.00011917,2]
[348265835,1736425859684,-500.0,0.00011917,2]
[348265836,1736425859696,-813.79,0.00011917,2]
[348265837,1736425859709,-500.0,0.00011917,2]
[348265838,1736425859719,-500.0,0.00011917,2]
[348265839,1736425859730,-532.95,0.00011917,2]
[348265840,1736425859742,-558.87,0.00011917,2]
[348265841,1736425859754,-459.39,0.00011982,2]
[348265842,1736425859767,-3296.81,0.00011999,2]
[348265843,1736425859780,-3296.81,0.00011999,2]
[348265844,1736425859792,-3296.81,0.00011999,2]
[348265845,1736425859805,-500.0,0.00011999,2]
[348265846,1736425859817,-500.0,0.00011999,2]
[348265847,1736425859829,-500.0,0.00011999,2]
[348265848,1736425859841,-500.0,0.00011999,2]
[348265849,1736425859854,-500.0,0.00011999,2]
[348265850,1736425859865,-618.19,0.00011999,2]
[348265851,1736425859874,-500.0,0.00011999,2]
[348265852,1736425859884,-500.0,0.00011999,2]
[348265853,1736425859894,-500.0,0.00011999,2]
[348265854,1736425859903,-500.0,0.00011999,2]
[348265855,1736425859913,-1382.0,0.00012,2]
[348265856,1736425859922,-963.04,0.00012,2]
[348265857,1736425859932,-1000.0,0.00012,2]
[348265858,1736425859941,-1000.0,0.00012,2]
[348265859,1736425860195,-1000.0,0.00012,2]
[348265860,1736425860223,-1000.0,0.00012,2]
[348265861,1736425860236,-1000.0,0.00012,2]
[348265862,1736425860245,-1000.0,0.00012,2]
[348265863,1736425860255,-1000.0,0.00012,2]
[348265864,1736425860265,-1000.0,0.00012,2]
[348265865,1736425860274,-1000.0,0.00012,2]
[348265866,1736425860284,-1000.0,0.00012,2]
[348265867,1736425860293,-821112.88116894,0.00012,2]
[348265868,1736425860303,-2807.86916356,0.00012,2]
[348265869,1736425860312,-500.0,0.00012052,2]
[348265870,1736425860321,-2000.0,0.00012052,2]
[348265871,1736425860330,-500.0,0.00012052,2]
[348265872,1736425860340,-200.0,0.00012052,2]
[348265873,1736425860349,-231.0305018,0.00012053,2]
[348265874,1736425860359,-215.70268658,0.000121,2]
[348265875,1736425860368,-1347.40885755,0.00012116,2]
[348265876,1736425860377,-152.0,0.00012127,3]
[348265877,1736425860387,-863.18529886,0.0001218,2]
[348265878,1736425860396,-500.0,0.00012185,2]
[348265879,1736425860406,-936.88,0.00012185,2]
[348265880,1736425860415,-1451.29,0.00012185,2]
[348265881,1736425860424,-500.0,0.00012185,2]
[348265882,1736425860433,-731.91,0.00012185,2]
[348265883,1736425860442,-929.61,0.00012185,2]
[348265884,1736425860451,-2453.77,0.00012185,2]
[348265885,1736425860461,-500.0,0.00012185,2]
[348265886,1736425860470,-500.0,0.00012185,2]
[348265887,1736425860479,-598.91,0.00012185,2]
[348265888,1736425860489,-1196.49,0.00012185,2]
[348265889,1736425860499,-628.31,0.00012185,2]
[348265890,1736425860508,-500.0,0.00012185,2]
[348265891,1736425860518,-500.0,0.00012185,2]
[348265892,1736425860527,-624.76,0.00012185,2]
[348265893,1736425860537,-500.0,0.00012185,2]
[348265894,1736425860546,-500.0,0.00012185,2]
[348265895,1736425860555,-646.53,0.00012185,2]
[348265896,1736425860564,-626.49,0.00012185,2]
[348265897,1736425860573,-1001.89,0.00012185,2]
[348265898,1736425860587,-1230.16,0.00012185,2]
[348265899,1736425860596,-537.3,0.00012186,2]
[348265900,1736425860605,-1343.75,0.00012186,2]
[348265901,1736425860614,-564.14,0.00012186,2]
[348265902,1736425860624,-1503.21,0.00012186,2]
[348265903,1736425860634,-500.0,0.00012186,2]
[348265904,1736425860643,-607.47,0.00012186,2]
[348265905,1736425860653,-500.0,0.00012186,2]
[348265906,1736425860662,-500.0,0.00012186,2]
[348265907,1736425860671,-500.0,0.00012186,2]
[348265908,1736425860681,-500.0,0.00012186,2]
[348265909,1736425860690,-719.7,0.00012186,2]
[348265910,1736425860699,-500.0,0.00012186,2]
[348265911,1736425860707,-500.0,0.00012186,2]
[348265912,1736425860718,-957.74,0.00012186,2]
[348265913,1736425860727,-500.0,0.00012186,2]
[348265914,1736425860738,-500.0,0.00012186,2]
[348265915,1736425860747,-500.0,0.00012186,2]
[348265916,1736425860757,-500.0,0.00012186,2]
[348265917,1736425860769,-500.0,0.00012186,2]
[348265918,1736425860778,-819.32,0.00012186,2]
[348265919,1736425860789,-500.0,0.00012186,2]
[348265920,1736425860799,-2787.96,0.00012186,2]
[348265921,1736425860808,-500.0,0.00012186,2]
[348265922,1736425860818,-500.0,0.00012186,2]
[348265923,1736425860828,-500.0,0.00012187,2]
[348265924,1736425860837,-500.0,0.00012191,2]
[348265925,1736425860847,-500.0,0.00012191,2]
[348265926,1736425860856,-605.39,0.00012191,2]
[348265927,1736425860866,-500.0,0.00012191,2]
[348265928,1736425860875,-500.0,0.00012191,2]
[348265929,1736425860885,-813.79,0.00012191,2]
[348265930,1736425860895,-550.99818604,0.00012191,2]
[348265931,1736425860904,-500.0,0.00012191,2]
[348265932,1736425860913,-532.95,0.00012191,2]
[348265933,1736425860922,-558.87,0.00012191,2]
[348265934,1736425860932,-153.0,0.00012198,2]
[348265935,1736425860942,-537.19443891,0.000122,2]
[348265936,1736425860952,-153.0,0.00012206,2]
[348265937,1736425860962,-153.0,0.00012213,2]
[348265938,1736425860972,-153.0,0.00012221,2]
[348265939,1736425860982,-153.0,0.00012236,2]
[348265940,1736425860991,-500.0,0.00012249,2]
[348265941,1736425861001,-618.19,0.00012273,2]
[348265942,1736425861011,-500.0,0.00012273,2]
[348265943,1736425861021,-500.0,0.00012273,2]
[348265944,1736425861031,-150.0,0.00012274,2]
[348265945,1736425861041,-150.0,0.00012274,2]
[348265946,1736425861050,-150.0,0.00012274,2]
[348265947,1736425861059,-3296.81,0.00012279,2]
[348265948,1736425861069,-3296.81,0.00012279,2]
[348265949,1736425861079,-500.0,0.00012279,2]
[348265950,1736425861089,-500.0,0.00012279,2]
[348265951,1736425861099,-172.8030999,0.00012296,2]
[348265952,1736425861109,-5717.4402762,0.00012296,2]
[348265953,1736425861119,-17005.4433293,0.00012296,2]
[348265954,1736425861129,-77454.58380808,0.00012296,2]
[348265955,1736425861139,-500.0,0.00012298,2]
[348265956,1736425861148,-2476.27,0.00012298,2]
[348265957,1736425861158,-1160.28520056,0.00012299,3]
[348265958,1736425861168,-1160.28520055,0.00012299,3]
[348265959,1736425861177,-3296.81,0.00012299,2]
[348265960,1736425861187,-3296.81,0.00012299,2]
[348265961,1736425861196,-3296.81,0.00012299,2]
[348265962,1736425861206,-3296.81,0.00012299,2]
[348265963,1736425861215,-3296.81,0.00012299,2]
[348265964,1736425861224,-3296.81,0.00012299,2]
[348265965,1736425861234,-3296.81,0.00012299,2]
[348265966,1736425861243,-3296.81,0.00012299,2]
[348265967,1736425861253,-3296.81,0.00012299,2]
[348265968,1736425861263,-3296.81,0.00012299,2]
[348265969,1736425861273,-3296.81,0.00012299,2]
[348265970,1736425861282,-3296.81,0.00012299,2]
[348265971,1736425861292,-3296.81,0.00012299,2]
[348265972,1736425861301,-3296.81,0.00012299,2]
[348265973,1736425861310,-3296.81,0.00012299,2]
[348265974,1736425861320,-3296.81,0.00012299,2]
[348265975,1736425861330,-3297.03171386,0.00012299,2]
[348265976,1736425861339,-500.0,0.00012299,2]
[348265977,1736425861348,-500.0,0.00012299,2]
[348265978,1736425861358,-500.0,0.00012299,2]
[348265979,1736425861367,-500.0,0.00012299,2]
[348265980,1736425861376,-500.0,0.00012299,2]
[348265981,1736425861386,-500.0,0.00012299,2]
[348265982,1736425861395,-500.0,0.00012299,2]
[348265983,1736425861405,-500.0,0.00012299,2]
[348265984,1736425861414,-500.0,0.00012299,2]
[348265985,1736425861424,-500.0,0.00012299,2]
[348265986,1736425861434,-500.0,0.00012299,2]
[348265987,1736425861444,-552.99891143,0.00012299,2]
[348265988,1736425861453,-3000.0,0.00012299,2]
[348265989,1736425861463,-2476.27,0.00012299,2]
[348265990,1736425861473,-2476.27,0.00012299,2]
[348265991,1736425861483,-2476.27,0.00012299,2]
[348265992,1736425861492,-2476.27,0.00012299,2]
[348265993,1736425861503,-2476.27,0.00012299,2]
[348265994,1736425861513,-2476.27,0.00012299,2]
[348265995,1736425861522,-2476.27,0.00012299,2]
[348265996,1736425861531,-2476.27,0.00012299,2]
[348265997,1736425861540,-2476.27,0.00012299,2]
[348265998,1736425861550,-2476.27,0.00012299,2]
[348265999,1736425861560,-2476.27,0.00012299,2]
[348266000,1736425861569,-2476.27,0.00012299,2]
[348266001,1736425861582,-2476.27,0.00012299,2]
[348266002,1736425861592,-2476.27,0.00012299,2]
[348266003,1736425861601,-2476.27,0.00012299,2]
[348266004,1736425861610,-2476.27,0.00012299,2]
[348266005,1736425861622,-2476.27,0.00012299,2]
[348266006,1736425861631,-2476.27,0.00012299,2]
[348266007,1736425861641,-2476.27,0.00012299,2]
[348266008,1736425861652,-2476.27,0.00012299,2]
[348266009,1736425861661,-2476.27,0.00012299,2]
[348266010,1736425861671,-2476.34711341,0.00012299,2]
[348266011,1736425861680,-2206507.74576668,0.000123,2]
[348266012,1736425861690,-4346069.76501754,0.000123,2]
[348266013,1736425862091,-310.65971412,9.973e-05,2]
[348266014,1736425862118,-191.67853592,9.973e-05,2]
[348266015,1736425862128,-320.3439725,0.00010273,2]
[348266016,1736425862139,-179.6560275,0.00010273,2]
[348266017,1736425862149,-500.0,0.00010547,2]
[348266018,1736425862158,-500.0,0.00010821,2]
[348266019,1736425862168,-777693.6274386,0.000123,2]
[348266020,1736425862476,-500.0,0.00010573,2]
[348266021,1736425862485,-500.0,0.00011095,2]
[348266022,1736425862495,-437.83,0.00011342,2]
[348266023,1736425862505,-500.0,0.00011369,2]
[348266024,1736425862515,-153.0,0.0001219,2]
[348266025,1736425862525,-5184.02097396,0.000123,2]
[348266026,1736426145959,1100.0,0.0002,120]
[348266028,1736426284226,3000.0,0.0002,120]
[348266029,1736426353901,201.25,0.00017,60]
[348266030,1736426503866,1640.0,0.0002,120]
[348266031,1736426805952,274.27,0.0002001,120]
[348266048,1736427007408,582.39,8.219e-05,2]
[348266057,1736427032000,-274.72,8.967e-05,2]
[348266058,1736427032009,-250.0,9.018e-05,2]
[348266059,1736427032018,-185.4,9.115e-05,2]
[348266060,1736427032027,-162.03,9.167e-05,2]
[348266061,1736427032039,-1500.0,9.231e-05,2]
[348266062,1736427032048,-2468.35,9.321e-05,2]
[348266063,1736427032059,-8112.29,9.321e-05,2]
[348266064,1736427032069,-618.34,9.372e-05,2]
[348266065,1736427032078,-250.0,9.407e-05,2]
[348266066,1736427032088,-60442.75,9.589e-05,2]
[348266067,1736427032097,-1325.77818995,9.605e-05,2]
[348266068,1736427032114,-609.22181005,9.605e-05,2]
[348266069,1736427032123,-150.0,9.616e-05,2]
[348266070,1736427032133,-1256.24,9.649e-05,2]
[348266071,1736427032142,-541.4,9.664e-05,2]
[348266072,1736427032152,-200.0,9.753e-05,2]
[348266073,1736427032162,-684.3,9.798e-05,2]
[348266074,1736427032171,-166.62,9.827e-05,2]
[348266075,1736427032181,-880.22218995,9.883e-05,2]
[348266076,1736427032193,-298.27781005,9.883e-05,2]
[348266077,1736427032202,-392.31,9.892e-05,2]
[348266078,1736427032212,-1858.64,9.994e-05,2]
[348266079,1736427032222,-500.0,9.994e-05,2]
[348266080,1736427032232,-500.0,9.994e-05,2]
[348266081,1736427032241,-665.68,9.994e-05,2]
[348266082,1736427032250,-582.47,9.994e-05,2]
[348266083,1736427032259,-500.0,9.994e-05,2]
[348266084,1736427032268,-581.52,9.994e-05,2]
[348266085,1736427032277,-500.0,9.994e-05,2]
[348266086,1736427032290,-500.0,9.994e-05,2]
[348266087,1736427032300,-500.0,9.994e-05,2]
[348266088,1736427032311,-500.0,9.994e-05,2]
[348266089,1736427032320,-1000.0,9.994e-05,2]
[348266090,1736427032330,-500.0,9.994e-05,2]
[348266091,1736427032339,-500.0,9.994e-05,2]
[348266092,1736427032349,-500.0,9.994e-05,2]
[348266093,1736427032359,-500.0,9.994e-05,2]
[348266094,1736427032369,-500.0,9.994e-05,2]
[348266095,1736427032380,-500.0,9.998e-05,2]
[348266096,1736427032389,-500.0,9.998e-05,2]
[348266097,1736427032399,-500.0,9.998e-05,2]
[348266098,1736427032409,-500.0,9.998e-05,2]
[348266099,1736427032419,-500.0,9.998e-05,2]
[348266100,1736427032428,-500.0,9.998e-05,2]
[348266101,1736427032438,-500.0,9.998e-05,2]
[348266102,1736427032447,-500.0,9.998e-05,2]
[348266103,1736427032457,-500.0,9.998e-05,2]
[348266104,1736427032467,-500.0,9.998e-05,2]
[348266105,1736427032477,-500.0,9.998e-05,2]
[348266106,1736427032487,-500.0,9.998e-05,2]
[348266107,1736427032497,-500.0,9.998e-05,2]
[348266108,1736427032506,-500.0,9.998e-05,2]
[348266109,1736427032516,-429.37285989,9.998e-05,2]
[348266110,1736427032526,-500.0,9.998e-05,2]
[348266111,1736427032538,-500.0,9.998e-05,2]
[348266112,1736427032547,-500.0,9.998e-05,2]
[348266113,1736427032557,-500.0,9.998e-05,2]
[348266114,1736427032566,-500.0,9.998e-05,2]
[348266115,1736427032576,-500.0,9.998e-05,2]
[348266116,1736427032585,-500.0,9.998e-05,2]
[348266117,1736427032595,-500.0,9.998e-05,2]
[348266118,1736427032606,-500.0,9.998e-05,2]
[348266119,1736427032615,-500.0,9.998e-05,2]
[348266120,1736427032625,-500.0,9.998e-05,2]
[348266121,1736427032635,-500.0,9.998e-05,2]
[348266122,1736427032645,-500.0,9.998e-05,2]
[348266123,1736427032655,-500.0,9.998e-05,2]
[348266124,1736427032664,-500.0,9.998e-05,2]
[348266125,1736427032674,-442.13134783,9.998e-05,2]
[348266126,1736427036047,-599.6459,9.899e-05,2]
[348266127,1736427036056,-57.86865217,9.998e-05,2]
[348266128,1736427036066,-500.0,9.998e-05,2]
[348266129,1736427036075,-562.58,9.998e-05,2]
[348266130,1736427036084,-500.0,9.998e-05,2]
[348266131,1736427036093,-500.0,9.998e-05,2]
[348266132,1736427036102,-500.0,9.998e-05,2]
[348266133,1736427036111,-500.0,9.998e-05,2]
[348266134,1736427036120,-500.0,9.998e-05,2]
[348266135,1736427036130,-500.0,9.998e-05,2]
[348266136,1736427036139,-500.0,9.998e-05,2]
[348266137,1736427036148,-500.0,9.998e-05,2]
[348266138,1736427036157,-500.0,9.998e-05,2]
[348266139,1736427036166,-500.0,9.998e-05,2]
[348266140,1736427036175,-500.0,9.998e-05,2]
[348266141,1736427036185,-500.0,9.998e-05,2]
[348266142,1736427036194,-217.7408855,9.998e-05,2]
[348266143,1736427036203,-500.0,9.998e-05,2]
[348266144,1736427036212,-500.0,9.998e-05,2]
[348266145,1736427036221,-500.0,9.998e-05,2]
[348266146,1736427036230,-500.0,9.998e-05,2]
[348266147,1736427036240,-500.0,9.998e-05,2]